bitfinex/quotes_BTCUSD_20250408
["timestamp","ask_amount","ask_price","bid_price","bid_amount"]
[1744084112457,0.012497,80018.0,80013.0,0.262453]
[1744084113080,0.003,80017.0,80013.0,0.262453]
[1744084113579,0.002,80017.0,80013.0,0.012497]
[1744084114155,0.24995,80016.0,80011.0,0.012498]
[1744084114357,0.012498,80012.0,80008.0,0.0461]
[1744084114674,0.012498,80008.0,80002.0,0.012499]
[1744084114928,0.262477,80007.0,80001.0,0.262493]
[1744084115125,0.012498,80008.0,80003.0,0.262489]
[1744084115697,0.262466,80010.0,80005.0,0.249984]
[1744084116101,0.001,80017.0,80015.0,0.249952]
[1744084116303,0.001,80017.0,80016.0,0.058597]
[1744084116831,0.012496,80023.0,80016.0,0.058597]
[1744084117034,0.262424,80023.0,80017.0,0.249946]
[1744084117399,0.262425,80023.0,80018.0,0.012497]
[1744084118118,0.012496,80022.0,80016.0,0.0461]
[1744084118346,0.249962,80012.0,80006.0,0.24998]
[1744084118492,0.012497,80013.0,80008.0,0.012498]
[1744084118694,0.012497,80013.0,80006.0,0.262479]
[1744084119512,0.262457,80013.0,80006.0,0.262479]
[1744084119725,0.262457,80013.0,80007.0,0.012498]
[1744084120258,0.249953,80015.0,80009.0,0.262466]
[1744084120554,0.26245,80015.0,80009.0,0.262466]
[1744084122144,0.012497,80015.0,80011.0,0.249965]
[1744084122321,0.012497,80015.0,80010.0,0.012498]
[1744084122528,0.249956,80014.0,80008.0,0.249972]
[1744084122821,0.012497,80015.0,80010.0,0.262465]
[1744084123026,0.001,80015.0,80011.0,0.012498]
[1744084123325,0.42938519,80016.0,80011.0,0.012498]
[1744084123770,0.001,80014.0,80011.0,0.012498]
[1744084124989,0.16793819,80016.0,80013.0,0.012497]
[1744084125313,0.16793819,80016.0,80015.0,0.058597]
[1744084125314,0.001,80016.0,80015.0,0.058597]
[1744084126105,0.34,80027.0,80022.0,0.012496]
[1744084126299,0.34012631,80027.0,80022.0,0.012496]
[1744084127456,0.34412631,80027.0,80023.0,0.249927]
[1744084128342,0.34,80025.0,80021.0,0.249934]
[1744084128820,0.34,80025.0,80021.0,0.26243]
[1744084130316,0.344,80025.0,80021.0,0.26243]
[1744084131564,0.344,80025.0,80023.0,0.249927]
[1744084131565,0.004,80025.0,80023.0,0.249927]
[1744084131771,0.004,80025.0,80023.0,0.27502772]
[1744084132131,0.004,80025.0,80023.0,0.02510072]
[1744084132328,0.005,80025.0,80022.0,0.012496]
[1744084132733,0.004,80025.0,80022.0,0.012496]
[1744084133051,0.005,80025.0,80022.0,0.262424]
[1744084133250,0.34012631,80027.0,80022.0,0.262424]
[1744084133446,0.004,80025.0,80022.0,0.262424]
[1744084133817,0.009,80025.0,80022.0,0.262424]
[1744084134021,0.005,80025.0,80024.0,0.262421]
[1744084135084,0.00012631,80027.0,80024.0,0.262421]
[1744084135382,0.00012631,80027.0,80026.0,0.262413]
[1744084135683,0.00412631,80027.0,80026.0,0.262413]
[1744084135907,0.01012631,80027.0,80026.0,0.262413]
[1744084136181,0.00612631,80027.0,80026.0,0.262413]
[1744084136387,0.00712631,80027.0,80026.0,0.262413]
[1744084136582,0.00112631,80027.0,80026.0,0.262413]
[1744084136792,0.00212631,80027.0,80026.0,0.262413]
[1744084137134,0.00312631,80027.0,80026.0,0.262413]
[1744084137792,0.00312631,80027.0,80026.0,0.3469984]
[1744084137962,0.00312631,80027.0,80026.0,0.262413]
[1744084140953,0.00312631,80027.0,80024.0,0.262421]
[1744084141126,0.25304431,80027.0,80022.0,0.012496]
[1744084141310,0.00312631,80027.0,80024.0,0.012496]
[1744084141505,0.00312631,80027.0,80024.0,0.262417]
[1744084141932,0.00212631,80027.0,80024.0,0.262417]
[1744084142160,0.00012631,80027.0,80024.0,0.262417]
[1744084142366,0.00112631,80027.0,80024.0,0.262417]
[1744084142576,0.00312631,80027.0,80024.0,0.262417]
[1744084142777,0.00212631,80027.0,80024.0,0.262417]
[1744084142941,0.00312631,80027.0,80024.0,0.262417]
[1744084144228,0.00312631,80027.0,80019.0,0.24994]
[1744084144229,0.012496,80024.0,80019.0,0.24994]
[1744084144428,0.012497,80019.0,80012.0,0.0459]
[1744084144635,0.012497,80019.0,80014.0,0.012497]
[1744084144830,0.262427,80022.0,80017.0,0.012497]
[1744084145408,0.262438,80019.0,80012.0,0.0459]
[1744084145564,0.012497,80017.0,80011.0,0.012498]
[1744084145758,0.249941,80019.0,80013.0,0.012497]
[1744084145990,0.249941,80019.0,80015.0,0.012497]
[1744084146307,0.249941,80019.0,80017.0,0.002]
[1744084146857,0.249941,80019.0,80015.0,0.012497]
[1744084148039,0.250941,80019.0,80013.0,0.262453]
[1744084148239,0.252941,80019.0,80013.0,0.262453]
[1744084148656,0.012497,80018.0,80013.0,0.012497]
[1744084149256,0.012499,80004.0,80002.0,0.0459]
[1744084149552,0.1293887,80017.0,79985.0,0.000168]
[1744084149553,0.249984,80005.0,79999.0,0.0125]
[1744084150305,0.249978,80007.0,80000.0,0.2625]
[1744084150500,0.249978,80007.0,80002.0,0.012499]
[1744084150501,0.262476,80007.0,80002.0,0.012499]
[1744084152462,0.266476,80007.0,80002.0,0.012499]
[1744084153018,0.004,80007.0,80003.0,0.262489]
[1744084153223,0.01484212,80007.0,80005.0,0.262482]
[1744084153423,0.004,80007.0,80006.0,0.058799]
[1744084154479,0.002,80007.0,80006.0,0.058799]
[1744084154626,0.34,80015.0,80011.0,0.012498]
[1744084155302,0.352497,80015.0,80006.0,0.308777]
[1744084155437,0.262466,80011.0,80006.0,0.0463]
[1744084155638,0.262466,80011.0,80006.0,0.250978]
[1744084156049,0.262466,80011.0,80005.0,0.26248]
[1744084156641,0.012498,80010.0,80005.0,0.26248]
[1744084157297,0.012498,80010.0,79999.0,0.296302]
[1744084157298,0.249987,80005.0,79999.0,0.296302]
[1744084157496,0.012499,80006.0,80001.0,0.249995]
[1744084157725,0.16693819,80009.0,80003.0,0.012499]
[1744084158005,0.42941019,80009.0,80003.0,0.262486]
[1744084158451,0.249978,80007.0,80003.0,0.262486]
[1744084158794,0.249978,80007.0,80003.0,0.249987]
[1744084159016,0.42941019,80009.0,80005.0,0.249984]
[1744084159219,0.42941019,80009.0,80003.0,0.249987]
[1744084159220,0.262476,80008.0,80003.0,0.262486]
[1744084160156,0.002,80007.0,80003.0,0.262486]
[1744084160324,0.012498,80008.0,80003.0,0.262486]
[1744084160530,0.012498,80007.0,80003.0,0.249987]
[1744084161348,0.012498,80008.0,80003.0,0.249987]
[1744084161754,0.43141019,80009.0,80004.0,0.012499]
[1744084161959,0.002,80008.0,80004.0,0.012499]
[1744084162656,0.001,80007.0,80004.0,0.012499]
[1744084162816,0.001,80007.0,80003.0,0.249987]
[1744084163023,0.014498,80008.0,80003.0,0.249987]
[1744084163205,0.014498,80008.0,79999.0,0.0463]
[1744084163206,0.012498,80007.0,79999.0,0.0463]
[1744084163405,0.012498,80007.0,79997.0,0.262508]
[1744084163406,0.249993,80003.0,79998.0,0.262503]
[1744084163795,0.0125,79997.0,79994.0,0.0482]
[1744084163959,0.250034,79989.0,79988.0,0.0482]
[1744084164148,0.250022,79993.0,79988.0,0.012501]
[1744084164364,0.262511,79997.0,79990.0,0.012501]
[1744084164538,0.262515,79996.0,79990.0,0.012501]
[1744084164880,0.0125,79995.0,79990.0,0.012501]
[1744084165196,0.0125,79995.0,79990.0,0.0129223]
[1744084165539,0.262518,79994.0,79990.0,0.0004213]
[1744084166708,0.0165,79995.0,79990.0,0.0129223]
[1744084167104,0.003,79994.0,79990.0,0.0129223]
[1744084167796,0.006,79994.0,79990.0,0.0129223]
[1744084168189,0.003,79994.0,79990.0,0.0129223]
[1744084169220,0.006,79994.0,79991.0,0.05633405]
[1744084169422,0.006,79994.0,79990.0,0.0129223]
[1744084169956,0.006,79994.0,79990.0,0.0004213]
[1744084170156,0.012501,79991.0,79990.0,0.0004213]
[1744084170513,0.262528,79992.0,79990.0,0.0004213]
[1744084171743,0.264528,79992.0,79990.0,0.0004213]
[1744084172179,0.266528,79992.0,79990.0,0.0004213]
[1744084172398,0.004,79992.0,79990.0,0.0004213]
[1744084172609,0.602529,79991.0,79990.0,0.0004213]
[1744084172742,0.9053226,79991.0,79990.0,0.0004213]
[1744084172952,0.8249177,79991.0,79990.0,0.0004213]
[1744084173587,0.8124167,79991.0,79990.0,0.0004213]
[1744084173784,0.8249177,79991.0,79990.0,0.0004213]
[1744084174115,0.8259177,79991.0,79990.0,0.0004213]
[1744084174483,0.8249177,79991.0,79990.0,0.0004213]
[1744084174676,0.8269177,79991.0,79990.0,0.0004213]
[1744084174882,0.8309177,79991.0,79990.0,0.0004213]
[1744084175264,0.8319177,79991.0,79990.0,0.0004213]
[1744084175661,0.8369177,79991.0,79990.0,0.0004213]
[1744084175858,0.602588,79973.0,79972.0,0.000168]
[1744084176081,0.602588,79973.0,79958.0,0.0001682]
[1744084176082,0.012505,79962.0,79958.0,0.0001682]
[1744084176259,0.7320117,79962.0,79958.0,0.0001682]
[1744084177519,0.7320117,79962.0,79961.0,0.00412562]
[1744084177738,0.81437978,79962.0,79961.0,0.00412562]
[1744084178197,0.7669671,79962.0,79961.0,0.00412562]
[1744084178682,0.7719671,79962.0,79961.0,0.00412562]
[1744084179262,0.7769671,79962.0,79961.0,0.00412562]
[1744084179481,1.1887671,79962.0,79961.0,0.00412562]
[1744084179768,1.1857671,79962.0,79961.0,0.00412562]
[1744084179968,1.1837671,79962.0,79961.0,0.00412562]
[1744084180770,1.1877671,79962.0,79961.0,0.00412562]
[1744084181177,1.1967671,79962.0,79961.0,0.00412562]
[1744084181495,1.2057671,79962.0,79961.0,0.00412562]
[1744084181760,1.2530671,79962.0,79961.0,0.00412562]
[1744084181959,1.2530671,79962.0,79939.0,0.000168]
[1744084181960,0.250187,79940.0,79939.0,0.000168]
[1744084182147,0.262696,79940.0,79939.0,0.0002944]
[1744084183464,0.262696,79940.0,79939.0,0.0012944]
[1744084183988,0.7320847,79940.0,79939.0,0.0002944]
[1744084184319,0.74762555,79940.0,79939.0,0.0002944]
[1744084185389,1.15842555,79940.0,79939.0,0.0002944]
[1744084185736,1.16742555,79940.0,79939.0,0.0002944]
[1744084186953,1.17242555,79940.0,79939.0,0.0002944]
[1744084187290,1.1578847,79940.0,79939.0,0.0002944]
[1744084187495,0.7608,79940.0,79939.0,0.0002944]
[1744084187690,0.7698,79940.0,79939.0,0.0002944]
[1744084189220,0.4298,79940.0,79939.0,0.29514514]
[1744084189613,0.4298,79940.0,79939.0,0.2629934]
[1744084190032,0.4208,79940.0,79939.0,0.2629934]
[1744084190972,0.4148,79940.0,79939.0,0.2629934]
[1744084191169,0.4118,79940.0,79939.0,0.2629934]
[1744084191371,0.352507,79955.0,79949.0,0.250159]
[1744084191670,0.34,79953.0,79949.0,0.250159]
[1744084191871,0.34,79953.0,79948.0,0.012508]
[1744084192100,0.34,79953.0,79949.0,0.250159]
[1744084192844,0.602656,79953.0,79948.0,0.012508]
[1744084193061,0.262666,79949.0,79944.0,0.250174]
[1744084193313,0.262666,79949.0,79936.0,0.012678]
[1744084193314,0.012508,79944.0,79939.0,0.0002944]
[1744084193483,0.262679,79945.0,79940.0,0.012509]
[1744084194504,0.262679,79945.0,79939.0,0.0002944]
[1744084194708,0.012508,79944.0,79939.0,0.0002944]
[1744084194912,0.012508,79943.0,79939.0,0.0002944]
[1744084195056,0.262696,79940.0,79939.0,0.0002944]
[1744084195258,0.012508,79943.0,79939.0,0.0002944]
[1744084195463,0.250178,79943.0,79939.0,0.0002944]
[1744084195659,0.005,79945.0,79940.0,0.262696]
[1744084195881,0.005,79945.0,79943.0,0.0473]
[1744084196111,0.005,79945.0,79944.0,0.262683]
[1744084196313,0.005,79945.0,79944.0,0.012508]
[1744084196520,0.250168,79947.0,79943.0,0.0473]
[1744084196715,0.005,79945.0,79943.0,0.0473]
[1744084196903,0.267681,79945.0,79943.0,0.0473]
[1744084197136,0.268681,79945.0,79943.0,0.0473]
[1744084197351,0.006,79945.0,79943.0,0.0473]
[1744084197549,0.011,79945.0,79943.0,0.0473]
[1744084198084,0.006,79945.0,79942.0,0.262689]
[1744084198256,0.006,79945.0,79939.0,0.0002944]
[1744084198257,0.012509,79941.0,79939.0,0.0002944]
[1744084198466,0.262696,79940.0,79939.0,0.0002944]
[1744084199955,0.265696,79940.0,79939.0,0.0002944]
[1744084200327,0.003,79940.0,79939.0,0.0002944]
[1744084200548,0.253187,79940.0,79939.0,0.0002944]
[1744084200978,0.268696,79940.0,79939.0,0.0002944]
[1744084202407,0.8837647,79940.0,79939.0,0.0002944]
[1744084203554,0.89830555,79940.0,79939.0,0.0002944]
[1744084204204,0.89530555,79940.0,79939.0,0.0002944]
[1744084204637,0.90330555,79940.0,79939.0,0.0002944]
[1744084204818,0.90030555,79940.0,79939.0,0.0002944]
[1744084205036,0.90830555,79940.0,79939.0,0.0002944]
[1744084205185,1.32010555,79940.0,79939.0,0.0002944]
[1744084205386,1.31210555,79940.0,79939.0,0.0002944]
[1744084205801,1.31310555,79940.0,79939.0,0.0002944]
[1744084206010,1.30410555,79940.0,79939.0,0.0002944]
[1744084206365,1.32210555,79940.0,79939.0,0.0002944]
[1744084206725,1.39177603,79940.0,79939.0,0.0002944]
[1744084207109,1.40077603,79940.0,79939.0,0.0002944]
[1744084208169,1.32210555,79940.0,79939.0,0.0002944]
[1744084210364,1.33373987,79940.0,79939.0,0.0002944]
[1744084212388,0.602702,79938.0,79937.0,0.000168]
[1744084212607,0.74663155,79938.0,79937.0,0.0002101]
[1744084212804,0.876037,79938.0,79937.0,0.0002101]
[1744084213186,0.75826587,79938.0,79937.0,0.0002101]
[1744084213838,0.76726587,79938.0,79937.0,0.0002101]
[1744084214042,0.75563155,79938.0,79937.0,0.0002101]
[1744084214498,0.77626761,79938.0,79937.0,0.0002101]
[1744084215047,0.92194761,79938.0,79937.0,0.0002101]
[1744084215254,0.90740676,79938.0,79937.0,0.0002101]
[1744084219744,0.8957707,79938.0,79937.0,0.0002101]
[1744084220462,0.9074153,79938.0,79937.0,0.0002101]
[1744084222360,0.8957707,79938.0,79937.0,0.0002101]
[1744084222569,0.9891447,79938.0,79937.0,0.0002101]
[1744084222736,0.8957707,79938.0,79937.0,0.0002101]
[1744084227892,0.766382,79938.0,79937.0,0.0002101]
[1744084228096,0.50368,79938.0,79937.0,0.0002101]
[1744084228297,0.50368,79938.0,79937.0,0.0485101]
[1744084229783,0.516189,79938.0,79937.0,0.0485101]
[1744084230527,0.50368,79938.0,79937.0,0.0485101]
[1744084230708,0.018,79938.0,79937.0,0.0610191]
[1744084231461,0.02807301,79938.0,79937.0,0.0610191]
[1744084231805,0.01007301,79938.0,79937.0,0.0610191]
[1744084232113,0.007,79938.0,79937.0,0.0610191]
[1744084232324,0.013,79938.0,79937.0,0.0610191]
[1744084232948,0.02300052,79938.0,79937.0,0.0610191]
[1744084234053,0.013,79938.0,79937.0,0.0610191]
[1744084242191,0.013,79938.0,79937.0,0.06352085]
[1744084242712,0.013,79938.0,79937.0,0.0610191]
[1744084242940,0.013,79938.0,79937.0,0.06352069]
[1744084243173,0.013,79938.0,79937.0,0.0610191]
[1744084244232,0.001,79938.0,79937.0,0.3112121]
[1744084244650,0.34,79950.0,79945.0,0.250171]
[1744084245112,0.0082606,79949.0,79945.0,0.250171]
[1744084246337,0.0082606,79949.0,79944.0,0.012508]
[1744084246550,0.012508,79948.0,79943.0,0.250178]
[1744084246762,0.00827855,79947.0,79941.0,0.262692]
[1744084246981,0.00827855,79947.0,79943.0,0.262685]
[1744084248062,0.01227855,79947.0,79943.0,0.262685]
[1744084248649,0.01627855,79947.0,79943.0,0.262685]
[1744084251683,0.01627855,79947.0,79944.0,0.26268]
[1744084252684,0.01627855,79947.0,79945.0,0.250169]
[1744084253322,0.01227855,79947.0,79945.0,0.250169]
[1744084254006,0.01627855,79947.0,79945.0,0.250169]
[1744084254214,0.01227855,79947.0,79945.0,0.262677]
[1744084254532,0.01627855,79947.0,79945.0,0.262677]
[1744084254766,0.02027855,79947.0,79945.0,0.262677]
[1744084255681,0.02027855,79947.0,79946.0,0.059908]
[1744084256658,0.01627855,79947.0,79946.0,0.059908]
[1744084256922,0.01227855,79947.0,79946.0,0.059908]
[1744084257345,0.01627855,79947.0,79946.0,0.059908]
[1744084260730,0.01627855,79947.0,79944.0,0.012508]
[1744084260970,0.01627855,79947.0,79940.0,0.058209]
[1744084260971,0.250191,79939.0,79937.0,0.0002101]
[1744084261197,0.00673071,79938.0,79937.0,0.0002101]
[1744084261933,0.01923971,79938.0,79937.0,0.0002101]
[1744084262163,0.00673071,79938.0,79937.0,0.0002101]
[1744084262378,0.01923971,79938.0,79937.0,0.0002101]
[1744084263196,0.00673071,79938.0,79937.0,0.0002101]
[1744084263403,0.00773071,79938.0,79937.0,0.0002101]
[1744084264648,0.02023971,79938.0,79937.0,0.0002101]
[1744084266226,0.00773071,79938.0,79937.0,0.0002101]
[1744084268013,0.27043271,79938.0,79937.0,0.0002101]
[1744084269630,0.27243271,79938.0,79937.0,0.0002101]
[1744084270162,0.27143271,79938.0,79937.0,0.0002101]
[1744084270509,0.27443271,79938.0,79937.0,0.0002101]
[1744084270865,0.23832811,79940.0,79937.0,0.0002101]
[1744084271014,0.0055303,79938.0,79937.0,0.0002101]
[1744084271211,0.23832811,79940.0,79937.0,0.0002101]
[1744084271429,0.2557233,79938.0,79937.0,0.0002101]
[1744084271629,0.262702,79938.0,79937.0,0.0002101]
[1744084271969,0.2682323,79938.0,79937.0,0.0002101]
[1744084273371,0.0055303,79938.0,79937.0,0.0002101]
[1744084273557,0.0075303,79938.0,79937.0,0.0002101]
[1744084276789,0.0200393,79938.0,79937.0,0.0002101]
[1744084276963,0.149428,79938.0,79937.0,0.0002101]
[1744084288447,0.489428,79938.0,79937.0,0.0002101]
[1744084290310,0.50396885,79938.0,79937.0,0.0002101]
[1744084291068,0.91376885,79938.0,79937.0,0.0002101]
[1744084291404,0.91776885,79938.0,79937.0,0.0002101]
[1744084292045,0.92376885,79938.0,79937.0,0.0002101]
[1744084293114,0.91976885,79938.0,79937.0,0.0002101]
[1744084293314,0.92676885,79938.0,79937.0,0.0002101]
[1744084293891,0.61724685,79937.0,79936.0,0.000168]
[1744084294082,0.74663555,79937.0,79936.0,0.00021004]
[1744084294369,0.75191735,79937.0,79936.0,0.00021004]
[1744084295177,0.75691735,79937.0,79936.0,0.00021004]
[1744084295682,0.79348343,79937.0,79936.0,0.00021004]
[1744084296595,0.75691735,79937.0,79936.0,0.00021004]
[1744084296941,1.17471735,79937.0,79936.0,0.00021004]
[1744084297899,1.3041228,79937.0,79936.0,0.00021004]
[1744084298399,1.17471735,79937.0,79936.0,0.00021004]
[1744084303655,1.22321735,79937.0,79936.0,0.00021004]
[1744084305073,1.17471735,79937.0,79936.0,0.00021004]
[1744084309913,1.22401735,79937.0,79936.0,0.00021004]
[1744084310994,1.21901735,79937.0,79936.0,0.00021004]
[1744084311396,1.22101735,79937.0,79936.0,0.00021004]
[1744084311650,1.23001735,79937.0,79936.0,0.00021004]
[1744084312369,1.18071735,79937.0,79936.0,0.00021004]
[1744084313660,1.32611735,79937.0,79936.0,0.00021004]
[1744084314397,1.3115765,79937.0,79936.0,0.00021004]
[1744084319008,1.3550773,79937.0,79936.0,0.00021004]
[1744084319210,1.32611735,79937.0,79936.0,0.00021004]
[1744084321740,1.36276467,79937.0,79936.0,0.00021004]
[1744084322248,0.35251,79932.0,79931.0,0.00303992]
[1744084322447,0.4818987,79932.0,79931.0,0.00303992]
[1744084322651,0.48792552,79932.0,79931.0,0.00303992]
[1744084323073,0.50246637,79932.0,79931.0,0.00303992]
[1744084323502,0.50846637,79932.0,79931.0,0.00303992]
[1744084323982,0.52382427,79932.0,79931.0,0.00303992]
[1744084326297,0.93562427,79932.0,79931.0,0.00303992]
[1744084328317,0.97232134,79932.0,79931.0,0.00303992]
[1744084328515,0.93562427,79932.0,79931.0,0.00303992]
[1744084330786,1.06502972,79932.0,79931.0,0.00303992]
[1744084330992,0.93562427,79932.0,79931.0,0.00303992]
[1744084332362,0.97231038,79932.0,79931.0,0.00303992]
[1744084336371,0.602725,79931.0,79928.0,0.000168]
[1744084336611,0.7321137,79931.0,79928.0,0.000168]
[1744084336828,0.73868474,79931.0,79928.0,0.000168]
[1744084338042,1.15648474,79931.0,79928.0,0.000168]
[1744084338275,1.16148474,79931.0,79928.0,0.000168]
[1744084338715,1.19816261,79931.0,79928.0,0.000168]
[1744084339313,1.16148474,79931.0,79928.0,0.000168]
[1744084340573,1.25678474,79931.0,79928.0,0.000168]
[1744084340782,1.29344301,79931.0,79928.0,0.000168]
[1744084340995,1.24524301,79931.0,79928.0,0.000168]
[1744084341958,1.30512453,79931.0,79928.0,0.000168]
[1744084342206,0.602733,79929.0,79928.0,0.000168]
[1744084342441,0.78332082,79929.0,79928.0,0.000168]
[1744084342667,0.78985083,79929.0,79928.0,0.000168]
[1744084343078,0.07415385,79911.0,79881.0,0.29767]
[1744084343281,0.07415385,79911.0,79876.0,0.0473]
[1744084343282,0.602876,79885.0,79876.0,0.0473]
[1744084343615,0.60927831,79885.0,79876.0,0.0473]
[1744084344218,0.00640231,79885.0,79876.0,0.0473]
[1744084344425,0.25680334,79885.0,79876.0,0.0473]
[1744084344891,0.26289,79881.0,79880.0,0.11150387]
[1744084345507,0.26923281,79881.0,79880.0,0.11150387]
[1744084345918,0.2807703,79881.0,79880.0,0.11150387]
[1744084347267,0.2807703,79881.0,79880.0,0.12738426]
[1744084348465,0.2807703,79881.0,79880.0,0.11150387]
[1744084349112,0.250381,79878.0,79876.0,0.0473]
[1744084349306,0.0178803,79881.0,79877.0,0.046]
[1744084349577,0.01153749,79881.0,79878.0,0.0451]
[1744084349968,0.01255903,79885.0,79878.0,0.0451]
[1744084350306,0.250363,79884.0,79878.0,0.29548]
[1744084350662,0.250363,79884.0,79878.0,0.0451]
[1744084350663,0.012518,79883.0,79878.0,0.0451]
[1744084351140,0.02213923,79883.0,79878.0,0.0451]
[1744084351345,0.00962123,79883.0,79880.0,0.262892]
[1744084351545,4.203e-05,79885.0,79881.0,0.057618]
[1744084351751,4.203e-05,79885.0,79875.0,0.012519]
[1744084351752,0.34,79872.0,79860.0,0.0451]
[1744084352066,0.35252,79872.0,79860.0,0.0451]
[1744084353275,0.49120004,79872.0,79860.0,0.0451]
[1744084353903,0.49220004,79872.0,79860.0,0.0451]
[1744084354179,0.50674089,79872.0,79860.0,0.0451]
[1744084354478,0.51074089,79872.0,79860.0,0.0451]
[1744084354751,0.50574089,79872.0,79860.0,0.0451]
[1744084354953,0.50974089,79872.0,79860.0,0.0451]
[1744084355152,0.51474089,79872.0,79860.0,0.0451]
[1744084356264,0.50020004,79872.0,79861.0,0.012521]
[1744084356846,0.50020004,79872.0,79860.0,0.0451]
[1744084357627,0.50020004,79872.0,79861.0,0.250434]
[1744084358478,0.50020004,79872.0,79860.0,0.0451]
[1744084359258,0.50672987,79872.0,79860.0,0.0451]
[1744084362670,0.50672987,79872.0,79860.0,0.057621]
[1744084362870,0.50672987,79872.0,79860.0,0.0451]
[1744084364488,0.91852987,79872.0,79860.0,0.0451]
[1744084365030,0.95339075,79872.0,79860.0,0.0451]
[1744084367793,0.93015016,79872.0,79860.0,0.0451]
[1744084367990,0.78824146,79872.0,79867.0,0.250415]
[1744084368224,0.78824146,79872.0,79871.0,0.0492]
[1744084368422,0.77662117,79872.0,79871.0,0.0492]
[1744084368627,0.78914117,79872.0,79871.0,0.0492]
[1744084370238,0.37734117,79872.0,79871.0,0.0492]
[1744084370733,0.37734117,79872.0,79871.0,0.004]
[1744084372375,0.50672987,79872.0,79871.0,0.004]
[1744084372578,0.52127072,79872.0,79871.0,8.5e-07]
[1744084372781,0.96821295,79872.0,79871.0,8.5e-07]
[1744084373642,0.96421295,79872.0,79871.0,8.5e-07]
[1744084373837,0.012521,79860.0,79859.0,0.0001683]
[1744084374035,1.31040037,79860.0,79859.0,0.0001683]
[1744084374974,1.31044238,79860.0,79859.0,0.0001683]
[1744084375174,1.31344238,79860.0,79859.0,0.0001683]
[1744084375478,1.36274238,79860.0,79859.0,0.0001683]
[1744084376522,1.37174238,79860.0,79859.0,0.0001683]
[1744084376724,1.35974238,79860.0,79859.0,0.0001683]
[1744084376966,1.36874238,79860.0,79859.0,0.0001683]
[1744084377169,1.37774238,79860.0,79859.0,0.0001683]
[1744084377479,1.50714783,79860.0,79859.0,0.0001683]
[1744084378321,1.50714783,79860.0,79851.0,0.0001681]
[1744084378486,0.61754685,79846.0,79845.0,0.00043191]
[1744084378703,0.89855681,79846.0,79845.0,0.00043191]
[1744084379799,0.90655681,79846.0,79845.0,0.00043191]
[1744084380015,1.03596226,79846.0,79845.0,0.00043191]
[1744084380187,0.90655681,79846.0,79845.0,0.00043191]
[1744084380838,0.91455681,79846.0,79845.0,0.00043191]
[1744084381141,0.95917463,79846.0,79845.0,0.00043191]
[1744084381773,0.603018,79842.0,79841.0,0.004]
[1744084382043,1.15874755,79842.0,79841.0,0.004]
[1744084382192,1.16479768,79842.0,79841.0,0.004]
[1744084382437,1.31023768,79842.0,79841.0,0.004]
[1744084383762,1.31823768,79842.0,79841.0,0.004]
[1744084384124,1.31923768,79842.0,79841.0,0.004]
[1744084384413,1.32823768,79842.0,79841.0,0.004]
[1744084384622,1.07774368,79842.0,79841.0,0.004]
[1744084384751,1.06320283,79842.0,79841.0,0.004]
[1744084392158,0.90523883,79842.0,79841.0,0.004]
[1744084392379,0.92129013,79842.0,79841.0,0.004]
[1744084393187,0.90329013,79842.0,79841.0,0.004]
[1744084393530,0.91629013,79842.0,79841.0,0.004]
[1744084395531,0.77085013,79842.0,79841.0,0.016524]
[1744084395847,0.77085013,79842.0,79841.0,0.004]
[1744084396588,0.35905013,79842.0,79841.0,0.064624]
[1744084397877,0.01905013,79842.0,79841.0,0.064624]
[1744084398091,0.01905013,79842.0,79841.0,0.13074352]
[1744084398644,0.01905013,79842.0,79841.0,0.064624]
[1744084400185,0.013,79842.0,79841.0,0.064624]
[1744084405035,0.007,79842.0,79841.0,0.064624]
[1744084405235,0.013,79842.0,79841.0,0.064624]
[1744084405761,0.007,79842.0,79841.0,0.064624]
[1744084406025,0.16758249,79851.0,79848.0,0.012523]
[1744084406208,1.401141,79854.0,79849.0,0.0488]
[1744084406351,1.255701,79854.0,79849.0,0.0488]
[1744084406558,0.262981,79854.0,79849.0,0.0488]
[1744084407352,0.012523,79853.0,79849.0,0.0488]
[1744084408286,0.006,79851.0,79849.0,0.0488]
[1744084408889,0.012523,79853.0,79849.0,0.0488]
[1744084409098,0.269986,79853.0,79849.0,0.0488]
[1744084410049,0.277986,79853.0,79849.0,0.0488]
[1744084412243,0.262986,79852.0,79849.0,0.0488]
[1744084412502,0.012523,79851.0,79849.0,0.0488]
[1744084413046,0.012523,79852.0,79849.0,0.0488]
[1744084413845,0.008,79851.0,79849.0,0.0488]
[1744084414049,0.012523,79852.0,79849.0,0.0488]
[1744084414417,0.250466,79851.0,79849.0,0.0488]
[1744084415428,0.008,79852.0,79849.0,0.0488]
[1744084415665,0.006,79851.0,79849.0,0.0488]
[1744084416027,0.014,79851.0,79849.0,0.0488]
[1744084417111,0.006,79851.0,79849.0,0.0488]
[1744084417322,0.014,79851.0,79849.0,0.0488]
[1744084417560,0.262992,79850.0,79849.0,0.0488]
[1744084418001,0.008,79851.0,79849.0,0.0488]
[1744084418661,0.006,79850.0,79849.0,0.0488]
[1744084419373,0.013,79850.0,79849.0,0.0488]
[1744084419793,0.275992,79850.0,79849.0,0.0488]
[1744084420851,0.269992,79850.0,79849.0,0.0488]
[1744084421283,0.263009,79846.0,79843.0,0.0496]
[1744084421696,0.250488,79844.0,79843.0,0.0496]
[1744084422473,0.012524,79845.0,79843.0,0.0496]
[1744084423412,0.004,79844.0,79843.0,0.0496]
[1744084423550,0.012524,79845.0,79843.0,0.0496]
[1744084423995,0.017524,79845.0,79843.0,0.0496]
[1744084424199,0.003,79844.0,79843.0,0.0496]
[1744084424608,0.017524,79845.0,79843.0,0.0496]
[1744084424807,0.017524,79845.0,79843.0,0.08378432]
[1744084425087,0.020524,79845.0,79843.0,0.08378432]
[1744084425266,0.271012,79845.0,79843.0,0.0496]
[1744084425440,0.012524,79844.0,79843.0,0.0496]
[1744084426072,0.016524,79844.0,79843.0,0.0496]
[1744084426522,0.004,79844.0,79843.0,0.0496]
[1744084427607,0.007,79844.0,79843.0,0.0496]
[1744084427837,0.007,79844.0,79843.0,0.10758172]
[1744084429049,0.007,79844.0,79843.0,0.0496]